lending/lending_fUSD_20240507
["ID","MTS","AMOUNT","RATE_DAILY","PERIOD"]
[326595889,1715122256985,-152.62869324,0.00020307,2]
[326595890,1715122256994,-153.40116984,0.00020407,2]
[326595891,1715122257003,-163.74808073,0.00020422,2]
[326595892,1715122257013,-150.7,0.00020482,5]
[326595893,1715122257023,-195.81,0.00020489,2]
[326595894,1715122257033,-359.89383141,0.000205,2]
[326595895,1715122257042,-150.0,0.000205,2]
[326595896,1715122257052,-500.0,0.00020547,2]
[326595897,1715122257061,-500.0,0.00020547,2]
[326595898,1715122257071,-500.0,0.00020547,2]
[326595899,1715122257080,-500.0,0.00020547,2]
[326595900,1715122257089,-500.0,0.00020547,2]
[326595901,1715122257098,-500.0,0.00020547,2]
[326595902,1715122257108,-500.0,0.00020547,2]
[326595903,1715122257117,-500.0,0.00020547,2]
[326595904,1715122257126,-500.0,0.00020547,2]
[326595905,1715122257136,-500.0,0.00020547,2]
[326595906,1715122257145,-500.0,0.00020547,2]
[326595907,1715122257155,-500.0,0.00020547,2]
[326595908,1715122257164,-500.0,0.00020547,2]
[326595909,1715122257174,-500.0,0.00020547,2]
[326595910,1715122257183,-500.0,0.00020547,2]
[326595911,1715122257193,-500.0,0.00020547,2]
[326595912,1715122257203,-150.0,0.00020547,2]
[326595913,1715122257212,-500.0,0.00020547,2]
[326595914,1715122257222,-500.0,0.00020547,2]
[326595915,1715122257231,-500.0,0.00020547,2]
[326595916,1715122257240,-500.0,0.00020547,2]
[326595917,1715122257249,-491.81441609,0.00020547,2]
[326595918,1715122257258,-500.0,0.00020547,2]
[326595919,1715122257267,-500.0,0.00020547,2]
[326595920,1715122257277,-500.0,0.00020547,2]
[326595921,1715122257286,-500.0,0.00020547,2]
[326595922,1715122257296,-500.0,0.00020547,2]
[326595923,1715122257305,-500.0,0.00020547,2]
[326595924,1715122257314,-500.0,0.00020547,2]
[326595925,1715122257322,-500.0,0.00020547,2]
[326595926,1715122257331,-500.0,0.00020547,2]
[326595927,1715122257341,-256.66,0.00020547,2]
[326595928,1715122257351,-500.0,0.00020547,2]
[326595929,1715122257360,-500.0,0.00020547,2]
[326595930,1715122257368,-500.0,0.00020547,2]
[326595931,1715122257377,-500.0,0.00020547,2]
[326595932,1715122257388,-500.0,0.00020547,2]
[326595933,1715122257396,-500.0,0.00020547,2]
[326595934,1715122257406,-500.0,0.00020547,2]
[326595935,1715122257416,-500.0,0.00020547,2]
[326595936,1715122257425,-500.0,0.00020547,2]
[326595937,1715122257434,-1192.99,0.00020547,2]
[326595938,1715122257443,-500.0,0.00020547,2]
[326595939,1715122257452,-500.0,0.00020547,2]
[326595940,1715122257461,-554.98,0.00020547,2]
[326595941,1715122257471,-500.0,0.00020547,2]
[326595942,1715122257480,-500.0,0.00020547,2]
[326595943,1715122257489,-500.0,0.00020547,2]
[326595944,1715122257499,-539.31,0.00020547,2]
[326595945,1715122257508,-622.67,0.00020547,2]
[326595946,1715122257520,-388.57259571,0.00020547,2]
[326595947,1715122257530,-500.0,0.00020547,2]
[326595948,1715122257539,-500.0,0.00020547,2]
[326595949,1715122257548,-500.0,0.00020547,2]
[326595950,1715122257557,-500.0,0.00020547,2]
[326595951,1715122257566,-500.0,0.00020547,2]
[326595952,1715122257576,-442.76341109,0.00020547,2]
[326595953,1715122257585,-500.0,0.00020547,2]
[326595954,1715122257594,-694.46,0.00020547,2]
[326595955,1715122257603,-500.0,0.00020547,2]
[326595956,1715122257613,-500.0,0.00020547,2]
[326595957,1715122257621,-500.0,0.00020547,2]
[326595958,1715122257631,-500.0,0.00020547,2]
[326595959,1715122257640,-500.0,0.00020547,2]
[326595960,1715122257649,-500.0,0.00020547,2]
[326595961,1715122257658,-500.0,0.00020547,2]
[326595962,1715122257667,-500.0,0.00020547,2]
[326595963,1715122257676,-500.0,0.00020547,2]
[326595964,1715122257685,-690.02,0.00020547,2]
[326595965,1715122257695,-500.0,0.00020547,2]
[326595966,1715122257704,-500.0,0.00020547,2]
[326595967,1715122257713,-725.56,0.00020547,2]
[326595968,1715122257722,-2665.36,0.00020547,2]
[326595969,1715122257731,-500.0,0.00020547,2]
[326595970,1715122257741,-1103.68,0.00020547,2]
[326595971,1715122257750,-608.6,0.00020547,2]
[326595972,1715122257759,-1369.86,0.00020547,2]
[326595973,1715122257768,-500.0,0.00020547,2]
[326595974,1715122257777,-500.0,0.00020547,2]
[326595975,1715122257787,-548.67,0.00020547,2]
[326595976,1715122257796,-500.0,0.00020547,2]
[326595977,1715122257811,-561.13512784,0.00020547,2]
[326595978,1715122257820,-500.0,0.00020547,2]
[326595979,1715122257829,-500.0,0.00020547,2]
[326595980,1715122257839,-984.9,0.00020547,2]
[326595981,1715122257847,-500.0,0.00020547,2]
[326595982,1715122257856,-500.0,0.00020547,2]
[326595983,1715122257866,-500.0,0.00020547,2]
[326595984,1715122257877,-500.0,0.00020547,2]
[326595985,1715122257888,-599.64,0.00020547,2]
[326595986,1715122257899,-500.0,0.00020547,2]
[326595987,1715122257912,-2106.05,0.00020547,2]
[326595988,1715122257922,-598.88772725,0.00020547,2]
[326595989,1715122257931,-500.0,0.00020547,2]
[326595990,1715122257940,-500.0,0.00020547,2]
[326595991,1715122257949,-500.0,0.00020547,2]
[326595992,1715122257959,-633.24,0.00020547,2]
[326595993,1715122257968,-500.0,0.00020547,2]
[326595994,1715122257978,-500.0,0.00020547,2]
[326595995,1715122257988,-500.0,0.00020547,2]
[326595996,1715122257997,-500.0,0.00020547,2]
[326595997,1715122258007,-309.71901467,0.00020547,2]
[326595998,1715122258017,-500.0,0.00020547,2]
[326595999,1715122258027,-500.0,0.00020547,2]
[326596000,1715122258037,-500.0,0.00020547,2]
[326596001,1715122258046,-500.0,0.00020547,2]
[326596002,1715122258056,-743.91,0.00020547,2]
[326596003,1715122258065,-500.0,0.00020547,2]
[326596004,1715122258074,-500.0,0.00020547,2]
[326596005,1715122258083,-500.0,0.00020547,2]
[326596006,1715122258092,-532.71,0.00020547,2]
[326596007,1715122258101,-500.0,0.00020547,2]
[326596008,1715122258110,-1592.2,0.00020547,2]
[326596009,1715122258119,-621.6,0.00020547,2]
[326596010,1715122258128,-500.0,0.00020547,2]
[326596011,1715122258137,-500.0,0.00020547,2]
[326596012,1715122258146,-500.0,0.00020547,2]
[326596013,1715122258156,-706.51,0.00020547,2]
[326596014,1715122258165,-500.0,0.00020547,2]
[326596015,1715122258174,-500.0,0.00020547,2]
[326596016,1715122258183,-504.35,0.00020547,2]
[326596017,1715122258192,-500.0,0.00020547,2]
[326596018,1715122258201,-500.0,0.00020547,2]
[326596019,1715122258213,-500.0,0.00020547,2]
[326596020,1715122258223,-632.63,0.00020547,2]
[326596021,1715122258233,-500.0,0.00020547,2]
[326596022,1715122258243,-500.0,0.00020547,2]
[326596023,1715122258252,-500.0,0.00020547,2]
[326596024,1715122258262,-500.0,0.00020547,2]
[326596025,1715122258271,-2045.26,0.00020547,2]
[326596026,1715122258281,-3756.12,0.00020547,2]
[326596027,1715122258290,-500.0,0.00020547,2]
[326596028,1715122258299,-500.0,0.00020547,2]
[326596029,1715122258309,-500.0,0.00020547,2]
[326596030,1715122258318,-500.0,0.00020547,2]
[326596031,1715122258327,-500.0,0.00020547,2]
[326596032,1715122258336,-500.0,0.00020547,2]
[326596033,1715122258346,-500.0,0.00020547,2]
[326596034,1715122258357,-500.0,0.00020547,2]
[326596035,1715122258367,-500.0,0.00020547,2]
[326596036,1715122258376,-500.0,0.00020547,2]
[326596037,1715122258386,-527.77,0.00020547,2]
[326596038,1715122258395,-500.0,0.00020547,2]
[326596039,1715122258404,-272.80938599,0.00020547,2]
[326596040,1715122258412,-523.05,0.00020555,2]
[326596041,1715122258421,-351.14,0.00020555,2]
[326596042,1715122258431,-150.0,0.00020555,2]
[326596043,1715122258440,-523.05,0.00020555,2]
[326596044,1715122258449,-517.96,0.000206,2]
[326596045,1715122258458,-500.0,0.00020821,2]
[326596046,1715122258469,-216.34349562,0.00020821,2]
[326596047,1715122258480,-500.0,0.00020821,2]
[326596048,1715122258490,-556.53230359,0.00020821,2]
[326596049,1715122258500,-500.0,0.00020821,2]
[326596050,1715122258511,-500.0,0.00020821,2]
[326596051,1715122258522,-500.0,0.00020821,2]
[326596052,1715122258531,-500.0,0.00020821,2]
[326596053,1715122258541,-500.0,0.00020821,2]
[326596054,1715122258550,-150.0,0.00020821,2]
[326596055,1715122258559,-241.3,0.00020821,2]
[326596056,1715122258568,-500.0,0.00020821,2]
[326596057,1715122258578,-500.0,0.00020821,2]
[326596058,1715122258588,-500.0,0.00020821,2]
[326596059,1715122258600,-500.0,0.00020821,2]
[326596060,1715122258612,-457.44307899,0.00020821,2]
[326596061,1715122258623,-500.0,0.00020821,2]
[326596062,1715122258633,-587.52673709,0.00020821,2]
[326596063,1715122258643,-500.0,0.00020821,2]
[326596064,1715122258654,-311.29502714,0.00020821,2]
[326596065,1715122258663,-500.0,0.00020821,2]
[326596066,1715122258672,-500.0,0.00020821,2]
[326596067,1715122258681,-500.0,0.00020821,2]
[326596068,1715122258690,-500.0,0.00020821,2]
[326596069,1715122258699,-500.0,0.00020821,2]
[326596070,1715122258708,-1192.99,0.00020821,2]
[326596071,1715122258717,-500.0,0.00020821,2]
[326596072,1715122258726,-554.98,0.00020821,2]
[326596073,1715122258735,-500.0,0.00020821,2]
[326596074,1715122258745,-500.0,0.00020821,2]
[326596075,1715122258755,-539.31,0.00020821,2]
[326596076,1715122258765,-622.67,0.00020821,2]
[326596077,1715122258774,-500.0,0.00020821,2]
[326596078,1715122258784,-500.0,0.00020821,2]
[326596079,1715122258793,-500.0,0.00020821,2]
[326596080,1715122258810,-694.46,0.00020821,2]
[326596081,1715122258819,-500.0,0.00020821,2]
[326596082,1715122258829,-500.0,0.00020821,2]
[326596083,1715122258839,-500.0,0.00020821,2]
[326596084,1715122258850,-500.0,0.00020821,2]
[326596085,1715122258859,-690.02,0.00020821,2]
[326596086,1715122258869,-500.0,0.00020821,2]
[326596087,1715122258878,-725.56,0.00020821,2]
[326596088,1715122258888,-2665.36,0.00020821,2]
[326596089,1715122258897,-500.0,0.00020821,2]
[326596090,1715122258907,-1103.68,0.00020821,2]
[326596091,1715122258916,-1369.86,0.00020821,2]
[326596092,1715122258926,-500.0,0.00020821,2]
[326596093,1715122258934,-500.0,0.00020821,2]
[326596094,1715122258944,-548.67,0.00020821,2]
[326596095,1715122258954,-500.0,0.00020821,2]
[326596096,1715122258963,-500.0,0.00020821,2]
[326596097,1715122258971,-984.9,0.00020821,2]
[326596098,1715122258980,-500.0,0.00020821,2]
[326596099,1715122258990,-500.0,0.00020821,2]
[326596100,1715122259000,-500.0,0.00020821,2]
[326596101,1715122259010,-360.08871968,0.00020821,2]
[326596102,1715122259020,-599.64,0.00020821,2]
[326596103,1715122259030,-596.44232678,0.00020821,2]
[326596104,1715122259040,-2106.05,0.00020821,2]
[326596105,1715122259049,-500.0,0.00020821,2]
[326596106,1715122259059,-500.0,0.00020821,2]
[326596107,1715122259068,-500.0,0.00020821,2]
[326596108,1715122259077,-633.24,0.00020821,2]
[326596109,1715122259086,-500.0,0.00020821,2]
[326596110,1715122259096,-500.0,0.00020821,2]
[326596111,1715122259105,-500.0,0.00020821,2]
[326596112,1715122259115,-500.0,0.00020821,2]
[326596113,1715122259124,-500.0,0.00020821,2]
[326596114,1715122259134,-289.69683146,0.00020821,2]
[326596115,1715122259143,-743.91,0.00020821,2]
[326596116,1715122259152,-500.0,0.00020821,2]
[326596117,1715122259161,-500.0,0.00020821,2]
[326596118,1715122259170,-500.0,0.00020821,2]
[326596119,1715122259181,-532.71,0.00020821,2]
[326596120,1715122259190,-500.0,0.00020821,2]
[326596121,1715122259200,-621.6,0.00020821,2]
[326596122,1715122259209,-1592.2,0.00020821,2]
[326596123,1715122259219,-500.0,0.00020821,2]
[326596124,1715122259228,-500.0,0.00020821,2]
[326596125,1715122259238,-706.51,0.00020821,2]
[326596126,1715122259248,-500.0,0.00020821,2]
[326596127,1715122259257,-504.35,0.00020821,2]
[326596128,1715122259267,-508.40022369,0.00020821,2]
[326596129,1715122259278,-500.0,0.00020821,2]
[326596130,1715122259287,-500.0,0.00020821,2]
[326596131,1715122259296,-632.63,0.00020821,2]
[326596132,1715122259306,-500.0,0.00020821,2]
[326596133,1715122259315,-2045.26,0.00020821,2]
[326596134,1715122259325,-3756.12,0.00020821,2]
[326596135,1715122259335,-500.0,0.00020821,2]
[326596136,1715122259345,-500.0,0.00020821,2]
[326596137,1715122259354,-500.0,0.00020821,2]
[326596138,1715122259364,-326.47430862,0.00020821,2]
[326596139,1715122259373,-500.0,0.00020821,2]
[326596140,1715122259382,-500.0,0.00020821,2]
[326596141,1715122259391,-500.0,0.00020821,2]
[326596142,1715122259400,-527.77,0.00020821,2]
[326596143,1715122259409,-500.0,0.00020821,2]
[326596144,1715122259418,-153.40116984,0.00020963,2]
[326596145,1715122259427,-167.54819864,0.00020968,2]
[326596146,1715122259437,-150.7,0.00020981,5]
[326596147,1715122259447,-2500.0,0.00021,2]
[326596148,1715122259456,-150.0,0.00021,2]
[326596149,1715122259465,-155.43631614,0.00021045,2]
[326596150,1715122259475,-500.0,0.00021095,2]
[326596151,1715122259484,-500.0,0.00021095,2]
[326596152,1715122259494,-500.0,0.00021095,2]
[326596153,1715122259503,-500.0,0.00021095,2]
[326596154,1715122259512,-500.0,0.00021095,2]
[326596155,1715122259523,-500.0,0.00021095,2]
[326596156,1715122259656,-500.0,0.00021095,2]
[326596157,1715122259667,-150.0,0.00021095,2]
[326596158,1715122259676,-500.0,0.00021095,2]
[326596159,1715122259685,-500.0,0.00021095,2]
[326596160,1715122259694,-500.0,0.00021095,2]
[326596161,1715122259704,-500.0,0.00021095,2]
[326596162,1715122259712,-500.0,0.00021095,2]
[326596163,1715122259723,-500.0,0.00021095,2]
[326596164,1715122259733,-500.0,0.00021095,2]
[326596165,1715122259742,-500.0,0.00021095,2]
[326596166,1715122259751,-500.0,0.00021095,2]
[326596167,1715122259761,-500.0,0.00021095,2]
[326596168,1715122259771,-1192.99,0.00021095,2]
[326596169,1715122259782,-500.0,0.00021095,2]
[326596170,1715122259791,-554.98,0.00021095,2]
[326596171,1715122259805,-500.0,0.00021095,2]
[326596172,1715122259814,-500.0,0.00021095,2]
[326596173,1715122259824,-539.31,0.00021095,2]
[326596174,1715122259833,-622.67,0.00021095,2]
[326596175,1715122259843,-500.0,0.00021095,2]
[326596176,1715122259853,-500.0,0.00021095,2]
[326596177,1715122259862,-500.0,0.00021095,2]
[326596178,1715122259872,-694.46,0.00021095,2]
[326596179,1715122259884,-370.91435602,0.00021095,2]
[326596180,1715122259894,-500.0,0.00021095,2]
[326596181,1715122259904,-500.0,0.00021095,2]
[326596182,1715122259914,-500.0,0.00021095,2]
[326596183,1715122259924,-690.02,0.00021095,2]
[326596184,1715122259934,-725.56,0.00021095,2]
[326596185,1715122259944,-2665.36,0.00021095,2]
[326596186,1715122259953,-500.0,0.00021095,2]
[326596187,1715122259963,-1103.68,0.00021095,2]
[326596188,1715122259972,-1369.86,0.00021095,2]
[326596189,1715122259982,-500.0,0.00021095,2]
[326596190,1715122259991,-548.67,0.00021095,2]
[326596191,1715122260001,-500.0,0.00021095,2]
[326596192,1715122260011,-984.9,0.00021095,2]
[326596193,1715122260021,-500.0,0.00021095,2]
[326596194,1715122260032,-500.0,0.00021095,2]
[326596195,1715122260042,-599.64,0.00021095,2]
[326596196,1715122260052,-2106.05,0.00021095,2]
[326596197,1715122260062,-500.0,0.00021095,2]
[326596198,1715122260073,-500.0,0.00021095,2]
[326596199,1715122260083,-633.24,0.00021095,2]
[326596200,1715122260093,-191.73975492,0.00021095,2]
[326596201,1715122260104,-500.0,0.00021095,2]
[326596202,1715122260113,-500.0,0.00021095,2]
[326596203,1715122260123,-743.91,0.00021095,2]
[326596204,1715122260133,-239.37904467,0.00021095,2]
[326596205,1715122260142,-500.0,0.00021095,2]
[326596206,1715122260153,-532.71,0.00021095,2]
[326596207,1715122260162,-500.0,0.00021095,2]
[326596208,1715122260172,-500.0,0.00021095,2]
[326596209,1715122260181,-621.6,0.00021095,2]
[326596210,1715122260191,-1592.2,0.00021095,2]
[326596211,1715122260202,-500.0,0.00021095,2]
[326596212,1715122260211,-500.0,0.00021095,2]
[326596213,1715122260221,-706.51,0.00021095,2]
[326596214,1715122260231,-500.0,0.00021095,2]
[326596215,1715122260240,-504.35,0.00021095,2]
[326596216,1715122260250,-500.0,0.00021095,2]
[326596217,1715122260260,-455.16368882,0.00021095,2]
[326596218,1715122260270,-632.63,0.00021095,2]
[326596219,1715122260281,-500.0,0.00021095,2]
[326596220,1715122260292,-2045.26,0.00021095,2]
[326596221,1715122260302,-3756.12,0.00021095,2]
[326596222,1715122260312,-500.0,0.00021095,2]
[326596223,1715122260323,-500.0,0.00021095,2]
[326596224,1715122260332,-500.0,0.00021095,2]
[326596225,1715122260342,-500.0,0.00021095,2]
[326596226,1715122260352,-500.0,0.00021095,2]
[326596227,1715122260362,-500.0,0.00021095,2]
[326596228,1715122260371,-527.77,0.00021095,2]
[326596229,1715122260382,-500.0,0.00021095,2]
[326596230,1715122260391,-682.97,0.000211,2]
[326596231,1715122260400,-755.32,0.000211,2]
[326596232,1715122260410,-153.40116985,0.00021317,2]
[326596233,1715122260420,-155.00821796,0.00021318,2]
[326596234,1715122260429,-500.0,0.00021369,2]
[326596235,1715122260440,-500.0,0.00021369,2]
[326596236,1715122260450,-500.0,0.00021369,2]
[326596237,1715122260460,-500.0,0.00021369,2]
[326596238,1715122260470,-500.0,0.00021369,2]
[326596239,1715122260479,-500.0,0.00021369,2]
[326596240,1715122260489,-500.0,0.00021369,2]
[326596241,1715122260498,-500.0,0.00021369,2]
[326596242,1715122260508,-227.5725204,0.00021369,2]
[326596243,1715122260518,-500.0,0.00021369,2]
[326596244,1715122260529,-500.0,0.00021369,2]
[326596245,1715122260539,-151.0,0.00021369,2]
[326596246,1715122260549,-500.0,0.00021369,2]
[326596247,1715122260558,-151.0,0.00021369,2]
[326596248,1715122260567,-712.502343,0.00021369,2]
[326596249,1715122260576,-188.749129,0.00021369,2]
[326596250,1715122260586,-153.540962,0.00021369,2]
[326596251,1715122260595,-153.464676,0.00021369,2]
[326596252,1715122260606,-712.502343,0.00021369,2]
[326596253,1715122260615,-151.0,0.00021369,2]
[326596254,1715122260625,-500.0,0.00021369,2]
[326596255,1715122260635,-151.0,0.00021369,2]
[326596256,1715122260644,-151.412505,0.00021369,2]
[326596257,1715122260654,-1192.99,0.00021369,2]
[326596258,1715122260663,-500.0,0.00021369,2]
[326596259,1715122260672,-554.98,0.00021369,2]
[326596260,1715122260682,-151.826439,0.00021369,2]
[326596261,1715122260691,-151.0,0.00021369,2]
[326596262,1715122260700,-500.0,0.00021369,2]
[326596263,1715122260710,-500.0,0.00021369,2]
[326596264,1715122260719,-151.0,0.00021369,2]
[326596265,1715122260728,-539.31,0.00021369,2]
[326596266,1715122260738,-622.67,0.00021369,2]
[326596267,1715122260747,-500.0,0.00021369,2]
[326596268,1715122260757,-151.0,0.00021369,2]
[326596269,1715122260766,-500.0,0.00021369,2]
[326596270,1715122260777,-151.0,0.00021369,2]
[326596271,1715122260787,-500.0,0.00021369,2]
[326596272,1715122260797,-694.46,0.00021369,2]
[326596273,1715122260813,-500.0,0.00021369,2]
[326596274,1715122260822,-500.0,0.00021369,2]
[326596275,1715122260832,-152.139386,0.00021369,2]
[326596276,1715122260842,-500.0,0.00021369,2]
[326596277,1715122260854,-151.0,0.00021369,2]
[326596278,1715122260863,-690.02,0.00021369,2]
[326596279,1715122260873,-168.540334,0.00021369,2]
[326596280,1715122260885,-151.0,0.00021369,2]
[326596281,1715122260894,-725.56,0.00021369,2]
[326596282,1715122260904,-2665.36,0.00021369,2]
[326596283,1715122260914,-151.0,0.00021369,2]
[326596284,1715122260923,-500.0,0.00021369,2]
[326596285,1715122260933,-299.659108,0.00021369,2]
[326596286,1715122260942,-1103.68,0.00021369,2]
[326596287,1715122260952,-151.0,0.00021369,2]
[326596288,1715122260961,-151.0,0.00021369,2]
[326596289,1715122260971,-500.0,0.00021369,2]
[326596290,1715122260980,-548.67,0.00021369,2]
[326596291,1715122260990,-1369.86,0.00021369,2]
[326596292,1715122260999,-356.82788561,0.00021369,2]
[326596293,1715122261012,-984.9,0.00021369,2]
[326596294,1715122261028,-151.0,0.00021369,2]
[326596295,1715122261043,-500.0,0.00021369,2]
[326596296,1715122261058,-309.65262113,0.00021369,2]
[326596297,1715122261070,-599.64,0.00021369,2]
[326596298,1715122261084,-151.717903,0.00021369,2]
[326596299,1715122261097,-2106.05,0.00021369,2]
[326596300,1715122261111,-500.0,0.00021369,2]
[326596301,1715122261124,-152.059216,0.00021369,2]
[326596302,1715122261138,-633.24,0.00021369,2]
[326596303,1715122261153,-166.784906,0.00021369,2]
[326596304,1715122261168,-500.0,0.00021369,2]
[326596305,1715122261181,-500.0,0.00021369,2]
[326596306,1715122261196,-151.0,0.00021369,2]
[326596307,1715122261209,-500.0,0.00021369,2]
[326596308,1715122261223,-166.784906,0.00021369,2]
[326596309,1715122261237,-743.91,0.00021369,2]
[326596310,1715122261250,-151.0,0.00021369,2]
[326596311,1715122261262,-152.36,0.00021369,2]
[326596312,1715122261273,-532.71,0.00021369,2]
[326596313,1715122261288,-508.22138076,0.00021369,2]
[326596314,1715122261300,-500.0,0.00021369,2]
[326596315,1715122261314,-1592.2,0.00021369,2]
[326596316,1715122261328,-621.6,0.00021369,2]
[326596317,1715122261343,-500.0,0.00021369,2]
[326596318,1715122261358,-500.0,0.00021369,2]
[326596319,1715122261372,-151.0,0.00021369,2]
[326596320,1715122261383,-706.51,0.00021369,2]
[326596321,1715122261394,-221.64356135,0.00021369,2]
[326596322,1715122261405,-504.35,0.00021369,2]
[326596323,1715122261417,-151.0,0.00021369,2]
[326596324,1715122261431,-151.0,0.00021369,2]
[326596325,1715122261443,-500.0,0.00021369,2]
[326596326,1715122261456,-632.63,0.00021369,2]
[326596327,1715122261467,-151.0,0.00021369,2]
[326596328,1715122261478,-152.618665,0.00021369,2]
[326596329,1715122261490,-500.0,0.00021369,2]
[326596330,1715122261503,-191.026066,0.00021369,2]
[326596331,1715122261517,-2045.26,0.00021369,2]
[326596332,1715122261528,-3756.12,0.00021369,2]
[326596333,1715122261539,-500.0,0.00021369,2]
[326596334,1715122261551,-500.0,0.00021369,2]
[326596335,1715122261563,-500.0,0.00021369,2]
[326596336,1715122261575,-500.0,0.00021369,2]
[326596337,1715122261587,-151.0,0.00021369,2]
[326596338,1715122261598,-500.0,0.00021369,2]
[326596339,1715122261610,-500.0,0.00021369,2]
[326596340,1715122261621,-151.99111,0.00021369,2]
[326596341,1715122261632,-527.77,0.00021369,2]
[326596342,1715122261644,-500.0,0.00021369,2]
[326596343,1715122261656,-151.0,0.00021369,2]
[326596344,1715122261667,-163.74808073,0.00021417,2]
[326596345,1715122261679,-317.05774051,0.00021457,2]
[326596346,1715122261690,-150.7,0.00021481,5]
[326596347,1715122261702,-1500.0,0.000215,2]
[326596348,1715122261713,-150.0,0.000215,3]
[326596349,1715122261724,-1468.32,0.00021589,15]
[326596350,1715122261736,-200335.20984477,0.00021643,2]
[326596351,1715122261747,-439.71312837,0.00021643,2]
[326596352,1715122261758,-500.0,0.00021643,2]
[326596353,1715122261770,-500.0,0.00021643,2]
[326596354,1715122261782,-151.0,0.00021643,2]
[326596355,1715122261793,-500.0,0.00021643,2]
[326596356,1715122261809,-151.0,0.00021643,2]
[326596357,1715122261820,-425.473947,0.00021643,2]
[326596358,1715122261831,-425.473947,0.00021643,2]
[326596359,1715122261844,-151.0,0.00021643,2]
[326596360,1715122261855,-151.0,0.00021643,2]
[326596361,1715122261867,-500.0,0.00021643,2]
[326596362,1715122261879,-151.0,0.00021643,2]
[326596363,1715122261891,-500.0,0.00021643,2]
[326596364,1715122261902,-500.0,0.00021643,2]
[326596365,1715122261914,-500.0,0.00021643,2]
[326596366,1715122261925,-151.0,0.00021643,2]
[326596367,1715122261936,-151.0,0.00021643,2]
[326596368,1715122261948,-151.0,0.00021643,2]
[326596369,1715122261959,-151.0,0.00021643,2]
[326596370,1715122261970,-151.0,0.00021643,2]
[326596371,1715122261982,-151.0,0.00021643,2]
[326596372,1715122261994,-151.962472,0.00021643,2]
[326596373,1715122262005,-151.0,0.00021643,2]
[326596374,1715122262016,-151.0,0.00021643,2]
[326596375,1715122262028,-500.0,0.00021643,2]
[326596376,1715122262039,-152.027302,0.00021643,2]
[326596377,1715122262050,-500.0,0.00021643,2]
[326596378,1715122262061,-151.0,0.00021643,2]
[326596379,1715122262073,-151.0,0.00021643,2]
[326596380,1715122262084,-151.0,0.00021643,2]
[326596381,1715122262096,-151.0,0.00021643,2]
[326596382,1715122262107,-500.0,0.00021643,2]
[326596383,1715122262118,-500.0,0.00021643,2]
[326596384,1715122262131,-1192.99,0.00021643,2]
[326596385,1715122262143,-500.0,0.00021643,2]
[326596386,1715122262155,-554.98,0.00021643,2]
[326596387,1715122262166,-500.0,0.00021643,2]
[326596388,1715122262177,-500.0,0.00021643,2]